[Event "Late-Titled-Tuesday-Blitz-February-06-2024"]
[Site "Chess.com"]
[Date "2024.02.06"]
[Round "6"]
[White "The_Machine04"]
[Black "betta2004"]
[Result "0-1"]
[WhiteElo "2703"]
[BlackElo "2559"]
[TimeControl "180+1"]
[EndTime "15:04:55 PST"]
[Termination "betta2004 won by checkmate"]

1. d4 {[%clk 0:03:00.9]} 1... Nf6 {[%clk 0:02:56.7]} 2. Nf3 {[%clk 0:03:00.4]}
2... c5 {[%clk 0:02:56]} 3. e3 {[%clk 0:03:00.5]} 3... d5 {[%clk 0:02:56]} 4. c3
{[%clk 0:03:00.5]} 4... Nc6 {[%clk 0:02:56.1]} 5. Nbd2 {[%clk 0:03:01.1]} 5...
e6 {[%clk 0:02:54.7]} 6. Bd3 {[%clk 0:03:01.2]} 6... Bd6 {[%clk 0:02:55]} 7. O-O
{[%clk 0:03:01.5]} 7... O-O {[%clk 0:02:55.6]} 8. dxc5 {[%clk 0:03:02.1]} 8...
Bxc5 {[%clk 0:02:55]} 9. b4 {[%clk 0:03:03]} 9... Be7 {[%clk 0:02:54.8]} 10. Bb2
{[%clk 0:03:03.6]} 10... a6 {[%clk 0:02:50.4]} 11. a3 {[%clk 0:03:03.2]} 11...
e5 {[%clk 0:02:50.6]} 12. e4 {[%clk 0:03:03.3]} 12... Bg4 {[%clk 0:02:49.8]} 13.
h3 {[%clk 0:03:02.8]} 13... Bh5 {[%clk 0:02:49.1]} 14. exd5 {[%clk 0:03:03.4]}
14... Qxd5 {[%clk 0:02:48]} 15. Qc2 {[%clk 0:03:04.1]} 15... Rad8 {[%clk
0:02:45.6]} 16. Bc4 {[%clk 0:02:57.7]} 16... Qd7 {[%clk 0:02:41.8]} 17. Rfe1
{[%clk 0:02:56.1]} 17... Bg6 {[%clk 0:02:36]} 18. Qb3 {[%clk 0:02:51.6]} 18...
b5 {[%clk 0:02:34]} 19. Bf1 {[%clk 0:02:50.2]} 19... e4 {[%clk 0:02:31.8]} 20.
Nd4 {[%clk 0:02:50.4]} 20... Nxd4 {[%clk 0:02:31.7]} 21. cxd4 {[%clk 0:02:51.3]}
21... Rfe8 {[%clk 0:02:18.2]} 22. a4 {[%clk 0:02:46.2]} 22... bxa4 {[%clk
0:02:15.5]} 23. Rxa4 {[%clk 0:02:44.5]} 23... Rb8 {[%clk 0:02:09.9]} 24. Bxa6
{[%clk 0:02:42.8]} 24... Nd5 {[%clk 0:02:05.6]} 25. b5 {[%clk 0:02:40.2]} 25...
Bg5 {[%clk 0:02:00.3]} 26. Nc4 {[%clk 0:02:39.3]} 26... f6 {[%clk 0:01:53.7]}
27. Ne3 {[%clk 0:02:35.6]} 27... Bf7 {[%clk 0:01:52.7]} 28. Nxd5 {[%clk
0:02:23.1]} 28... Bxd5 {[%clk 0:01:53.6]} 29. Qg3 {[%clk 0:02:21]} 29... Rxb5
{[%clk 0:01:52.7]} 30. Bxb5 {[%clk 0:02:17.5]} 30... Qxb5 {[%clk 0:01:53.6]} 31.
Qa3 {[%clk 0:02:15]} 31... Bd2 {[%clk 0:01:51.7]} 32. Rd1 {[%clk 0:01:59.3]}
32... e3 {[%clk 0:01:51.3]} 33. fxe3 {[%clk 0:01:59.7]} 33... Qe2 {[%clk
0:01:48]} 34. Rxd2 {[%clk 0:01:49]} 34... Qxd2 {[%clk 0:01:47.5]} 35. e4 {[%clk
0:01:49.5]} 35... Bxe4 {[%clk 0:01:42.5]} 36. Qb3+ {[%clk 0:01:40]} 36... Kh8
{[%clk 0:01:38.1]} 37. Qg3 {[%clk 0:01:36.6]} 37... Qxb2 {[%clk 0:01:37.2]} 38.
Ra7 {[%clk 0:01:35.3]} 38... Qxd4+ {[%clk 0:01:37.1]} 39. Qf2 {[%clk 0:01:33.3]}
39... Qxf2+ {[%clk 0:01:37.4]} 40. Kxf2 {[%clk 0:01:34.2]} 40... h5 {[%clk
0:01:36.4]} 41. h4 {[%clk 0:01:34.1]} 41... Kh7 {[%clk 0:01:36.3]} 42. Ra5
{[%clk 0:01:34.3]} 42... Kh6 {[%clk 0:01:36.1]} 43. g3 {[%clk 0:01:35]} 43...
Re5 {[%clk 0:01:34.1]} 44. Ra6 {[%clk 0:01:34.5]} 44... Bf5 {[%clk 0:01:34.4]}
45. Kf3 {[%clk 0:01:34.3]} 45... Bg4+ {[%clk 0:01:34.8]} 46. Kf4 {[%clk
0:01:34.8]} 46... Rf5+ {[%clk 0:01:27.9]} 47. Ke4 {[%clk 0:01:34.9]} 47... Rf3
{[%clk 0:01:28.8]} 48. Ra8 {[%clk 0:01:32.9]} 48... Rxg3 {[%clk 0:01:27.4]} 49.
Kf4 {[%clk 0:01:33.1]} 49... Rf3+ {[%clk 0:01:27.7]} 50. Ke4 {[%clk 0:01:33.7]}
50... Kg6 {[%clk 0:01:27.3]} 51. Ra5 {[%clk 0:01:33]} 51... Rh3 {[%clk
0:01:26.9]} 52. Kf4 {[%clk 0:01:33.1]} 52... Rxh4 {[%clk 0:01:26.5]} 53. Kg3
{[%clk 0:01:33.6]} 53... Rh3+ {[%clk 0:01:26.8]} 54. Kf4 {[%clk 0:01:33.4]}
54... Rf3+ {[%clk 0:01:27.4]} 55. Ke4 {[%clk 0:01:33.9]} 55... h4 {[%clk
0:01:27.2]} 56. Ra1 {[%clk 0:01:32.7]} 56... h3 {[%clk 0:01:26.8]} 57. Rg1
{[%clk 0:01:33.2]} 57... f5+ {[%clk 0:01:27.1]} 58. Ke5 {[%clk 0:01:33.4]} 58...
h2 {[%clk 0:01:27.7]} 59. Rh1 {[%clk 0:01:33.8]} 59... Rh3 {[%clk 0:01:28.1]}
60. Kf4 {[%clk 0:01:33.7]} 60... Bf3 {[%clk 0:01:27.8]} 61. Rg1+ {[%clk
0:01:29.6]} 61... hxg1=Q {[%clk 0:01:25.8]} 62. Ke5 {[%clk 0:01:30.2]} 62...
Qe3+ {[%clk 0:01:25.7]} 63. Kd6 {[%clk 0:01:30.3]} 63... Qd4+ {[%clk 0:01:26]}
64. Kc7 {[%clk 0:01:31.2]} 64... Qc5+ {[%clk 0:01:26]} 65. Kb8 {[%clk
0:01:32.1]} 65... Qb6+ {[%clk 0:01:25.4]} 66. Kc8 {[%clk 0:01:33]} 66... Qc6+
{[%clk 0:01:24.1]} 67. Kd8 {[%clk 0:01:32.8]} 67... Qd6+ {[%clk 0:01:23.7]} 68.
Ke8 {[%clk 0:01:33.1]} 68... Rh8# {[%clk 0:01:24.1]} 0-1

[Event "Late-Titled-Tuesday-Blitz-February-06-2024"]
[Site "Chess.com"]
[Date "2024.02.06"]
[Round "6"]
[White "Bryanl106"]
[Black "nikitadovbnya2008"]
[Result "1/2-1/2"]
[WhiteElo "2536"]
[BlackElo "2360"]
[TimeControl "180+1"]
[EndTime "15:04:55 PST"]
[Termination "Game drawn - insufficient material"]

1. e4 {[%clk 0:02:59.9]} 1... e5 {[%clk 0:02:48.8]} 2. Nf3 {[%clk 0:02:58.5]}
2... Nc6 {[%clk 0:02:48.9]} 3. Nc3 {[%clk 0:02:59.4]} 3... Nf6 {[%clk
0:02:48.1]} 4. a3 {[%clk 0:02:59.9]} 4... d5 {[%clk 0:02:46.2]} 5. Bb5 {[%clk
0:02:59.5]} 5... Nxe4 {[%clk 0:02:46.2]} 6. Qe2 {[%clk 0:02:59.6]} 6... Nxc3
{[%clk 0:02:29.8]} 7. Qxe5+ {[%clk 0:02:58.9]} 7... Qe7 {[%clk 0:02:25.5]} 8.
dxc3 {[%clk 0:02:56.5]} 8... Bd7 {[%clk 0:02:19.2]} 9. Qxe7+ {[%clk 0:02:55.4]}
9... Bxe7 {[%clk 0:02:18.2]} 10. Bf4 {[%clk 0:02:55.9]} 10... O-O-O {[%clk
0:02:16.6]} 11. O-O-O {[%clk 0:02:55.8]} 11... Bg4 {[%clk 0:02:07.2]} 12. Rhe1
{[%clk 0:02:50.9]} 12... Bxf3 {[%clk 0:02:06.6]} 13. gxf3 {[%clk 0:02:49.8]}
13... Bd6 {[%clk 0:02:01.9]} 14. Bg3 {[%clk 0:02:38.1]} 14... Bxg3 {[%clk
0:01:57.7]} 15. hxg3 {[%clk 0:02:39]} 15... a6 {[%clk 0:01:48.5]} 16. Ba4 {[%clk
0:02:37.4]} 16... Rhe8 {[%clk 0:01:38]} 17. Rxe8 {[%clk 0:02:34.9]} 17... Rxe8
{[%clk 0:01:38.9]} 18. Rxd5 {[%clk 0:02:35.2]} 18... Re2 {[%clk 0:01:37.6]} 19.
Rd2 {[%clk 0:02:34.6]} 19... Re1+ {[%clk 0:01:37.4]} 20. Rd1 {[%clk 0:02:35.1]}
20... Re2 {[%clk 0:01:37.8]} 21. Bxc6 {[%clk 0:02:32.8]} 21... bxc6 {[%clk
0:01:35.9]} 22. Rf1 {[%clk 0:02:33.4]} 22... Kd7 {[%clk 0:01:29.2]} 23. Kd1
{[%clk 0:02:32]} 23... Re5 {[%clk 0:01:23.1]} 24. Re1 {[%clk 0:02:32.3]} 24...
Rf5 {[%clk 0:01:21.6]} 25. Re3 {[%clk 0:02:31.8]} 25... h5 {[%clk 0:01:20.8]}
26. Ke2 {[%clk 0:02:32.1]} 26... g5 {[%clk 0:01:17.2]} 27. Re4 {[%clk
0:02:31.2]} 27... Kd6 {[%clk 0:01:11]} 28. Ke3 {[%clk 0:02:30.3]} 28... Re5
{[%clk 0:01:00.5]} 29. f4 {[%clk 0:02:23.8]} 29... Rxe4+ {[%clk 0:00:53.9]} 30.
Kxe4 {[%clk 0:02:23.1]} 30... f6 {[%clk 0:00:31.8]} 31. fxg5 {[%clk 0:02:18.4]}
31... fxg5 {[%clk 0:00:30.4]} 32. Kf5 {[%clk 0:02:18.9]} 32... h4 {[%clk
0:00:27.1]} 33. Kg4 {[%clk 0:02:18.4]} 33... Ke5 {[%clk 0:00:24.8]} 34. gxh4
{[%clk 0:02:14.6]} 34... gxh4 {[%clk 0:00:24.3]} 35. Kxh4 {[%clk 0:02:13.7]}
35... Kf4 {[%clk 0:00:24.4]} 36. Kh5 {[%clk 0:02:13.7]} 36... Kf3 {[%clk
0:00:24.6]} 37. Kg5 {[%clk 0:02:14.1]} 37... Kxf2 {[%clk 0:00:25.2]} 38. Kf6
{[%clk 0:02:14.8]} 38... Ke2 {[%clk 0:00:25.8]} 39. Ke7 {[%clk 0:02:15.5]} 39...
Kd2 {[%clk 0:00:26.3]} 40. Kd7 {[%clk 0:02:15.1]} 40... Kxc2 {[%clk 0:00:26.5]}
41. Kxc6 {[%clk 0:02:15.5]} 41... Kxb2 {[%clk 0:00:26.4]} 42. c4 {[%clk
0:02:15.1]} 42... Kxa3 {[%clk 0:00:18]} 43. Kxc7 {[%clk 0:02:10.7]} 43... Kb4
{[%clk 0:00:18.1]} 44. Kc6 {[%clk 0:02:09.8]} 44... a5 {[%clk 0:00:17.7]} 45.
Kb6 {[%clk 0:02:07.9]} 45... a4 {[%clk 0:00:15.3]} 46. c5 {[%clk 0:02:07.5]}
46... a3 {[%clk 0:00:15.8]} 47. c6 {[%clk 0:02:08.1]} 47... a2 {[%clk
0:00:16.3]} 48. c7 {[%clk 0:02:08.8]} 48... a1=Q {[%clk 0:00:16.6]} 49. c8=Q
{[%clk 0:02:09.1]} 49... Qa5+ {[%clk 0:00:16.9]} 50. Kb7 {[%clk 0:02:09.1]}
50... Qb5+ {[%clk 0:00:16.5]} 51. Ka7 {[%clk 0:02:09.1]} 51... Qa5+ {[%clk
0:00:16.7]} 52. Kb8 {[%clk 0:02:09.5]} 52... Qb6+ {[%clk 0:00:16.3]} 53. Ka8
{[%clk 0:02:10.1]} 53... Qa5+ {[%clk 0:00:16.6]} 54. Kb7 {[%clk 0:02:10.7]}
54... Qb5+ {[%clk 0:00:17]} 55. Kc7 {[%clk 0:02:11.3]} 55... Qc5+ {[%clk
0:00:17.2]} 56. Kd7 {[%clk 0:02:12]} 56... Qxc8+ {[%clk 0:00:17.8]} 57. Kxc8
{[%clk 0:02:12.9]} 1/2-1/2

[Event "Late-Titled-Tuesday-Blitz-February-06-2024"]
[Site "Chess.com"]
[Date "2024.02.06"]
[Round "6"]
[White "goldihouse"]
[Black "picturesquecheck"]
[Result "1-0"]
[WhiteElo "2603"]
[BlackElo "2393"]
[TimeControl "180+1"]
[EndTime "15:04:56 PST"]
[Termination "goldihouse won by resignation"]

1. c4 {[%clk 0:03:00.8]} 1... Nf6 {[%clk 0:02:59.2]} 2. g3 {[%clk 0:03:01.2]}
2... g6 {[%clk 0:02:58.7]} 3. Bg2 {[%clk 0:03:01.4]} 3... Bg7 {[%clk 0:02:59.4]}
4. Nc3 {[%clk 0:03:01.9]} 4... d6 {[%clk 0:03:00.2]} 5. e3 {[%clk 0:03:01.5]}
5... O-O {[%clk 0:03:00.8]} 6. Nge2 {[%clk 0:03:02]} 6... e5 {[%clk 0:03:00.7]}
7. O-O {[%clk 0:03:02.5]} 7... Nc6 {[%clk 0:02:59.3]} 8. d3 {[%clk 0:03:02.5]}
8... Re8 {[%clk 0:02:56.7]} 9. h3 {[%clk 0:03:02.3]} 9... Be6 {[%clk 0:02:53.6]}
10. Nd5 {[%clk 0:03:02.3]} 10... Qd7 {[%clk 0:02:49.2]} 11. Kh2 {[%clk
0:03:02.2]} 11... Bxd5 {[%clk 0:02:47.2]} 12. cxd5 {[%clk 0:03:02.1]} 12... Ne7
{[%clk 0:02:47.5]} 13. e4 {[%clk 0:03:02.4]} 13... c6 {[%clk 0:02:46.3]} 14.
dxc6 {[%clk 0:03:03.3]} 14... Nxc6 {[%clk 0:02:46.1]} 15. Bg5 {[%clk 0:03:02.6]}
15... h6 {[%clk 0:02:43.8]} 16. Bxf6 {[%clk 0:02:58.5]} 16... Bxf6 {[%clk
0:02:44.7]} 17. Rc1 {[%clk 0:02:52.8]} 17... Rac8 {[%clk 0:02:40.6]} 18. Qb3
{[%clk 0:02:50.3]} 18... Bg7 {[%clk 0:02:36.5]} 19. Qb5 {[%clk 0:02:42.6]} 19...
a6 {[%clk 0:02:34.6]} 20. Qb6 {[%clk 0:02:42.6]} 20... Qc7 {[%clk 0:02:29.6]}
21. Qxc7 {[%clk 0:02:42.5]} 21... Rxc7 {[%clk 0:02:25.5]} 22. Rc3 {[%clk
0:02:40.6]} 22... Rec8 {[%clk 0:02:21]} 23. Rfc1 {[%clk 0:02:40.5]} 23... Bf6
{[%clk 0:02:04.4]} 24. h4 {[%clk 0:02:40]} 24... g5 {[%clk 0:01:53.4]} 25. Bh3
{[%clk 0:02:39.5]} 25... Rd8 {[%clk 0:01:47.9]} 26. hxg5 {[%clk 0:02:35.7]}
26... hxg5 {[%clk 0:01:46.2]} 27. Bf5 {[%clk 0:02:19.4]} 27... Kg7 {[%clk
0:01:36.1]} 28. Kg2 {[%clk 0:02:07.6]} 28... Re7 {[%clk 0:01:31.4]} 29. a3
{[%clk 0:01:59.6]} 29... Ree8 {[%clk 0:01:31.1]} 30. b4 {[%clk 0:01:55.1]} 30...
Rb8 {[%clk 0:01:25.1]} 31. Bd7 {[%clk 0:01:53.6]} 31... Red8 {[%clk 0:01:07.3]}
32. Bxc6 {[%clk 0:01:52.9]} 32... bxc6 {[%clk 0:01:08.2]} 33. g4 {[%clk
0:01:53]} 33... a5 {[%clk 0:01:04.8]} 34. Ng3 {[%clk 0:01:48.5]} 34... axb4
{[%clk 0:01:03.8]} 35. axb4 {[%clk 0:01:47.7]} 35... Rxb4 {[%clk 0:01:04.4]} 36.
Nf5+ {[%clk 0:01:39.2]} 36... Kf8 {[%clk 0:00:57.8]} 37. Rxc6 {[%clk 0:01:39.3]}
37... Be7 {[%clk 0:00:44.6]} 38. Rh1 {[%clk 0:01:31.7]} 38... Bf6 {[%clk
0:00:36.5]} 39. Rc7 {[%clk 0:01:25.2]} 39... Kg8 {[%clk 0:00:31.7]} 40. Nh6+
{[%clk 0:01:24.7]} 1-0

[Event "Late-Titled-Tuesday-Blitz-February-06-2024"]
[Site "Chess.com"]
[Date "2024.02.06"]
[Round "6"]
[White "RantomOpening"]
[Black "Doublekk14"]
[Result "1-0"]
[WhiteElo "2508"]
[BlackElo "2305"]
[TimeControl "180+1"]
[EndTime "15:04:58 PST"]
[Termination "RantomOpening won on time"]

1. e4 {[%clk 0:03:00.1]} 1... c5 {[%clk 0:02:59.3]} 2. c3 {[%clk 0:02:59.6]}
2... d5 {[%clk 0:02:58.1]} 3. exd5 {[%clk 0:02:59.9]} 3... Qxd5 {[%clk
0:02:56.9]} 4. Nf3 {[%clk 0:02:59]} 4... Nc6 {[%clk 0:02:56.7]} 5. d4 {[%clk
0:02:58.8]} 5... Nf6 {[%clk 0:02:56.2]} 6. c4 {[%clk 0:02:58]} 6... Qe6+ {[%clk
0:02:52.5]} 7. Be3 {[%clk 0:02:57.1]} 7... cxd4 {[%clk 0:02:49.5]} 8. Nxd4
{[%clk 0:02:58]} 8... Nxd4 {[%clk 0:02:48.7]} 9. Qxd4 {[%clk 0:02:58.9]} 9...
Ng4 {[%clk 0:02:39.1]} 10. Nc3 {[%clk 0:02:42.5]} 10... Nxe3 {[%clk 0:02:38.4]}
11. fxe3 {[%clk 0:02:43.4]} 11... Qf6 {[%clk 0:02:04.6]} 12. Qxf6 {[%clk
0:02:26.8]} 12... exf6 {[%clk 0:02:01.1]} 13. O-O-O {[%clk 0:02:24.4]} 13... Bc5
{[%clk 0:01:57.6]} 14. Nd5 {[%clk 0:02:23.5]} 14... O-O {[%clk 0:01:56.4]} 15.
Bd3 {[%clk 0:02:20.9]} 15... Bg4 {[%clk 0:01:51.8]} 16. Rde1 {[%clk 0:02:19.5]}
16... a5 {[%clk 0:01:46.2]} 17. h3 {[%clk 0:02:18.4]} 17... Be6 {[%clk
0:01:41.6]} 18. e4 {[%clk 0:02:18.6]} 18... Rac8 {[%clk 0:01:34.4]} 19. a3
{[%clk 0:02:15.3]} 19... f5 {[%clk 0:01:12.2]} 20. Kb1 {[%clk 0:02:10.3]} 20...
fxe4 {[%clk 0:01:10.5]} 21. Bxe4 {[%clk 0:02:11.2]} 21... Bxd5 {[%clk
0:01:07.7]} 22. Bxd5 {[%clk 0:02:11]} 22... b6 {[%clk 0:01:06.7]} 23. Rhf1
{[%clk 0:02:11.4]} 23... Rc7 {[%clk 0:01:03]} 24. Kc2 {[%clk 0:02:11.2]} 24...
g6 {[%clk 0:00:54.3]} 25. Kb3 {[%clk 0:02:10.8]} 25... Kg7 {[%clk 0:00:53.8]}
26. Ka4 {[%clk 0:02:10.9]} 26... Bd4 {[%clk 0:00:46.4]} 27. b4 {[%clk
0:02:10.1]} 27... axb4 {[%clk 0:00:45.4]} 28. axb4 {[%clk 0:02:11]} 28... f5
{[%clk 0:00:14.5]} 29. Kb5 {[%clk 0:02:09.1]} 29... Rd7 {[%clk 0:00:13.5]} 30.
Rd1 {[%clk 0:02:07.9]} 30... Bc3 {[%clk 0:00:11.7]} 31. Rd3 {[%clk 0:01:55.3]}
31... Bf6 {[%clk 0:00:07.3]} 32. Re1 {[%clk 0:01:55.6]} 32... Rb8 {[%clk
0:00:06.5]} 33. Re6 {[%clk 0:01:55.1]} 33... Re7 {[%clk 0:00:02.7]} 34. Rxb6
{[%clk 0:01:52.4]} 34... Rxb6+ {[%clk 0:00:02.7]} 35. Kxb6 {[%clk 0:01:53.3]}
35... g5 {[%clk 0:00:02.6]} 36. c5 {[%clk 0:01:51.3]} 1-0

[Event "Late-Titled-Tuesday-Blitz-February-06-2024"]
[Site "Chess.com"]
[Date "2024.02.06"]
[Round "6"]
[White "HanSchut"]
[Black "Anna20240"]
[Result "1-0"]
[WhiteElo "2254"]
[BlackElo "1896"]
[TimeControl "180+1"]
[EndTime "15:04:59 PST"]
[Termination "HanSchut won by checkmate"]

1. e4 {[%clk 0:03:00.9]} 1... c6 {[%clk 0:02:55.1]} 2. d4 {[%clk 0:03:00.7]}
2... d5 {[%clk 0:02:55.4]} 3. exd5 {[%clk 0:03:01.6]} 3... cxd5 {[%clk
0:02:55.7]} 4. c4 {[%clk 0:03:02.5]} 4... Nf6 {[%clk 0:02:54.1]} 5. Nc3 {[%clk
0:03:03.4]} 5... e6 {[%clk 0:02:52.6]} 6. Nf3 {[%clk 0:03:04.3]} 6... Bb4 {[%clk
0:02:52.6]} 7. cxd5 {[%clk 0:03:05.2]} 7... Nxd5 {[%clk 0:02:47.9]} 8. Qc2
{[%clk 0:03:05.1]} 8... Qc7 {[%clk 0:02:40]} 9. Bd2 {[%clk 0:03:03.8]} 9... Bd7
{[%clk 0:02:34.9]} 10. Rc1 {[%clk 0:02:57.6]} 10... Bxc3 {[%clk 0:02:26.5]} 11.
bxc3 {[%clk 0:02:54.9]} 11... Nc6 {[%clk 0:02:21.5]} 12. Bd3 {[%clk 0:02:51]}
12... h6 {[%clk 0:02:20.4]} 13. O-O {[%clk 0:02:49.1]} 13... O-O {[%clk
0:02:18.1]} 14. Rfe1 {[%clk 0:02:46.4]} 14... Rac8 {[%clk 0:02:14.6]} 15. Qd1
{[%clk 0:02:36.9]} 15... Qd8 {[%clk 0:02:10.1]} 16. Qe2 {[%clk 0:02:35.9]} 16...
Qf6 {[%clk 0:02:02]} 17. Qe4 {[%clk 0:02:32.2]} 17... g6 {[%clk 0:01:51.6]} 18.
Bxh6 {[%clk 0:02:30.9]} 18... Rfe8 {[%clk 0:01:49.2]} 19. Bg5 {[%clk 0:02:29.4]}
19... Qg7 {[%clk 0:01:47.3]} 20. Ne5 {[%clk 0:02:17.6]} 20... Nxe5 {[%clk
0:01:40.5]} 21. dxe5 {[%clk 0:02:18.5]} 21... Bc6 {[%clk 0:01:36.9]} 22. Qh4
{[%clk 0:02:12.6]} 22... Nb6 {[%clk 0:01:04.2]} 23. Re3 {[%clk 0:02:01.9]} 23...
Nd7 {[%clk 0:00:45.5]} 24. Rce1 {[%clk 0:01:44.1]} 24... Qh7 {[%clk 0:00:26.7]}
25. Qf4 {[%clk 0:01:39.4]} 25... Qg7 {[%clk 0:00:20]} 26. Bf6 {[%clk 0:01:28.3]}
26... Nxf6 {[%clk 0:00:19]} 27. exf6 {[%clk 0:01:29.1]} 27... Qf8 {[%clk
0:00:17.7]} 28. Rh3 {[%clk 0:01:28.2]} 28... Qc5 {[%clk 0:00:13.3]} 29. Rh8+
{[%clk 0:01:20.8]} 29... Kxh8 {[%clk 0:00:11.3]} 30. Qh6+ {[%clk 0:01:21.7]}
30... Kg8 {[%clk 0:00:11.3]} 31. Qg7# {[%clk 0:01:22.6]} 1-0

[Event "Late-Titled-Tuesday-Blitz-February-06-2024"]
[Site "Chess.com"]
[Date "2024.02.06"]
[Round "6"]
[White "Alina_Gumerovna"]
[Black "jinxy2009"]
[Result "0-1"]
[WhiteElo "2081"]
[BlackElo "2229"]
[TimeControl "180+1"]
[EndTime "15:04:59 PST"]
[Termination "jinxy2009 won on time"]

1. e4 {[%clk 0:02:59.7]} 1... c6 {[%clk 0:02:59.8]} 2. c4 {[%clk 0:02:57.3]}
2... d5 {[%clk 0:03:00.7]} 3. cxd5 {[%clk 0:02:56.1]} 3... cxd5 {[%clk
0:03:01.6]} 4. exd5 {[%clk 0:02:57]} 4... Qxd5 {[%clk 0:03:00.6]} 5. Nc3 {[%clk
0:02:57.3]} 5... Qd8 {[%clk 0:03:00]} 6. Bc4 {[%clk 0:02:56]} 6... Nf6 {[%clk
0:02:57.6]} 7. d4 {[%clk 0:02:54.8]} 7... Bf5 {[%clk 0:02:55.7]} 8. h3 {[%clk
0:02:53.8]} 8... e6 {[%clk 0:02:56]} 9. Nf3 {[%clk 0:02:53.8]} 9... Be7 {[%clk
0:02:51.3]} 10. O-O {[%clk 0:02:43.8]} 10... O-O {[%clk 0:02:47.4]} 11. Re1
{[%clk 0:02:41.5]} 11... Nc6 {[%clk 0:02:47.5]} 12. Bf4 {[%clk 0:02:17.7]} 12...
Rc8 {[%clk 0:02:44.6]} 13. Bd3 {[%clk 0:01:59.7]} 13... Bg6 {[%clk 0:02:34.6]}
14. a3 {[%clk 0:01:36.2]} 14... Bd6 {[%clk 0:02:28.8]} 15. Bg5 {[%clk
0:01:29.1]} 15... Bxd3 {[%clk 0:02:17]} 16. Qxd3 {[%clk 0:01:26.9]} 16... h6
{[%clk 0:02:17.4]} 17. Bh4 {[%clk 0:01:14.8]} 17... g5 {[%clk 0:02:01.9]} 18.
Bxg5 {[%clk 0:00:02.3]} 18... hxg5 {[%clk 0:01:53.8]} 19. Nxg5 {[%clk
0:00:03.2]} 19... Bf4 {[%clk 0:01:51.4]} 20. Nce4 {[%clk 0:00:02.2]} 20... Qxd4
{[%clk 0:01:49.2]} 21. Qxd4 {[%clk 0:00:02.2]} 21... Nxd4 {[%clk 0:01:47.6]} 22.
Nxf6+ {[%clk 0:00:02.7]} 22... Kh8 {[%clk 0:01:39.2]} 23. Nge4 {[%clk
0:00:02.6]} 23... Nc2 {[%clk 0:01:38.6]} 24. Rac1 {[%clk 0:00:02]} 24... Nxe1
{[%clk 0:01:37.9]} 25. Rxe1 {[%clk 0:00:02.5]} 25... Rc2 {[%clk 0:01:34.5]} 26.
g3 {[%clk 0:00:02.3]} 26... Be5 {[%clk 0:01:33.2]} 27. Ng4 {[%clk 0:00:02.4]}
27... Bxb2 {[%clk 0:01:32]} 28. Ng5 {[%clk 0:00:01.3]} 28... Bxa3 {[%clk
0:01:29.9]} 0-1

[Event "Late-Titled-Tuesday-Blitz-February-06-2024"]
[Site "Chess.com"]
[Date "2024.02.06"]
[Round "6"]
[White "martinez_95"]
[Black "Road2GM3000"]
[Result "1-0"]
[WhiteElo "2250"]
[BlackElo "2473"]
[TimeControl "180+1"]
[EndTime "15:05:07 PST"]
[Termination "martinez_95 won by checkmate"]

1. e4 {[%clk 0:02:58.8]} 1... c5 {[%clk 0:02:53.4]} 2. Nf3 {[%clk 0:02:58.5]}
2... d6 {[%clk 0:02:53.8]} 3. d4 {[%clk 0:02:59]} 3... cxd4 {[%clk 0:02:53.9]}
4. Nxd4 {[%clk 0:02:58]} 4... Nf6 {[%clk 0:02:53.1]} 5. Nc3 {[%clk 0:02:57.9]}
5... a6 {[%clk 0:02:52.9]} 6. Bc4 {[%clk 0:02:55.9]} 6... e6 {[%clk 0:02:47.6]}
7. Bb3 {[%clk 0:02:50.6]} 7... Nbd7 {[%clk 0:02:47.2]} 8. Be3 {[%clk 0:02:48.3]}
8... Nc5 {[%clk 0:02:47.8]} 9. g4 {[%clk 0:02:46.2]} 9... Be7 {[%clk 0:02:45.9]}
10. Qf3 {[%clk 0:02:34.1]} 10... Nfd7 {[%clk 0:02:42.5]} 11. Qg2 {[%clk
0:02:32.9]} 11... O-O {[%clk 0:02:33.4]} 12. O-O-O {[%clk 0:02:31.8]} 12... Qc7
{[%clk 0:02:31.1]} 13. Kb1 {[%clk 0:02:32.1]} 13... b5 {[%clk 0:02:30.7]} 14.
Rhg1 {[%clk 0:02:21.6]} 14... Bb7 {[%clk 0:02:28.9]} 15. f3 {[%clk 0:02:15.3]}
15... Nb6 {[%clk 0:02:23.9]} 16. g5 {[%clk 0:02:08.6]} 16... b4 {[%clk
0:02:07.9]} 17. Nce2 {[%clk 0:02:06]} 17... a5 {[%clk 0:02:08.1]} 18. Nb5 {[%clk
0:01:59.3]} 18... Qc6 {[%clk 0:02:07.9]} 19. Ned4 {[%clk 0:01:45.3]} 19... Qe8
{[%clk 0:02:02.2]} 20. Nc7 {[%clk 0:01:43.2]} 20... Qb8 {[%clk 0:02:00.2]} 21.
Ncxe6 {[%clk 0:01:32.6]} 21... fxe6 {[%clk 0:01:56.3]} 22. Nxe6 {[%clk
0:01:30.4]} 22... Nxb3 {[%clk 0:01:49.2]} 23. cxb3 {[%clk 0:01:22.6]} 23... Nd7
{[%clk 0:01:23.3]} 24. Bd4 {[%clk 0:01:13.2]} 24... Ne5 {[%clk 0:01:20]} 25.
Bxe5 {[%clk 0:01:10.2]} 25... dxe5 {[%clk 0:01:19.3]} 26. Rd7 {[%clk 0:01:04.4]}
26... Re8 {[%clk 0:01:18.7]} 27. g6 {[%clk 0:01:02.7]} 27... h6 {[%clk
0:01:15.7]} 28. Qh3 {[%clk 0:00:59]} 28... Bc8 {[%clk 0:01:11.5]} 29. Nxg7
{[%clk 0:00:52.8]} 29... Bxd7 {[%clk 0:00:54.3]} 30. Qxh6 {[%clk 0:00:49.4]}
30... Bf6 {[%clk 0:00:40.8]} 31. Nh5 {[%clk 0:00:49.1]} 31... Qb6 {[%clk
0:00:34.4]} 32. Qh7+ {[%clk 0:00:48.2]} 32... Kf8 {[%clk 0:00:34.9]} 33. Qf7#
{[%clk 0:00:48.6]} 1-0

[Event "Late-Titled-Tuesday-Blitz-February-06-2024"]
[Site "Chess.com"]
[Date "2024.02.06"]
[Round "6"]
[White "varunkrishnanchess"]
[Black "ccccvhhhj"]
[Result "0-1"]
[WhiteElo "2628"]
[BlackElo "2478"]
[TimeControl "180+1"]
[EndTime "15:05:15 PST"]
[Termination "ccccvhhhj won by resignation"]

1. d4 {[%clk 0:02:53]} 1... e5 {[%clk 0:03:00.3]} 2. dxe5 {[%clk 0:02:52.1]}
2... d6 {[%clk 0:03:00.8]} 3. exd6 {[%clk 0:02:51.5]} 3... Bxd6 {[%clk
0:03:01.7]} 4. Nc3 {[%clk 0:02:46.4]} 4... Nc6 {[%clk 0:03:00.9]} 5. Nf3 {[%clk
0:02:43.3]} 5... Bg4 {[%clk 0:03:00.3]} 6. e3 {[%clk 0:02:41.2]} 6... Qe7 {[%clk
0:03:00.9]} 7. Nd5 {[%clk 0:02:37.5]} 7... Qe6 {[%clk 0:02:58.3]} 8. Bc4 {[%clk
0:02:12.3]} 8... Qg6 {[%clk 0:02:58.3]} 9. Nf4 {[%clk 0:01:49.1]} 9... Qh6
{[%clk 0:02:37.5]} 10. O-O {[%clk 0:01:39]} 10... O-O-O {[%clk 0:02:37.3]} 11.
Bd2 {[%clk 0:01:00.9]} 11... g5 {[%clk 0:02:36.8]} 12. Nh3 {[%clk 0:01:01.1]}
12... Bxh3 {[%clk 0:02:28.2]} 13. gxh3 {[%clk 0:01:00.6]} 13... Qxh3 {[%clk
0:02:28.8]} 14. Bxf7 {[%clk 0:00:56.7]} 14... g4 {[%clk 0:02:10.3]} 15. Be6+
{[%clk 0:00:56]} 15... Kb8 {[%clk 0:02:10.8]} 16. Bc3 {[%clk 0:00:42.3]} 16...
Qh6 {[%clk 0:01:21]} 17. Bxg4 {[%clk 0:00:25.5]} 17... Nf6 {[%clk 0:01:21.1]}
18. Bxf6 {[%clk 0:00:14.5]} 18... Qxf6 {[%clk 0:01:22]} 19. Bh3 {[%clk
0:00:14.3]} 19... Rhg8+ {[%clk 0:01:16.6]} 20. Kh1 {[%clk 0:00:14.1]} 20... Ne5
{[%clk 0:01:09.7]} 21. Nd4 {[%clk 0:00:07.3]} 21... Qh4 {[%clk 0:01:02.9]} 22.
Nf3 {[%clk 0:00:01.6]} 22... Qxh3 {[%clk 0:00:59.4]} 23. Rg1 {[%clk 0:00:02.1]}
23... Nxf3 {[%clk 0:00:56.5]} 0-1